Cogmind - Beta 13 @@@ ROGUE MODE // 2024.04.08 @ 14:08:47 Player: Calliope Result: Destroyed by WD-LTX(R) with Subdweller Laser Performance ------------- Evolutions (0) 0 Regions Visited (2) 400 Robots Destroyed (26) 130 Value Destroyed (591) 591 Prototype IDs (0) 0 Alien Tech Used (0) 0 Bonus (0) 0 TOTAL SCORE: 1121 Bonus ------- None Cogmind --------- Core Integrity 0/250 Matter 229/300 Energy 154/250 System Corruption 3% Temperature Cool (6) Movement Walking (190) Ox1 Location -10/Subcaves Parts ------- > --- POWER (1) -------- Ion Engine > --- PROPULSION (2) --- Aluminum Leg Aluminum Leg > --- UTILITY (2) ------ Large Storage Unit Signal Interpreter > --- WEAPON (2) ------- Medium Laser Slug Cannon > --- INVENTORY (15) --- Light Treads Flight Unit Flight Unit Structural Scanner Targeting Computer Armor Integrity Analyzer Scrap Shield Hacking Suite Assault Rifle Datajack Datajack Peak State ------------ > --- POWER ------------ Light Ion Engine > --- PROPULSION ------- Aluminum Leg Aluminum Leg > --- UTILITY ---------- Large Storage Unit Signal Interpreter > --- WEAPON ----------- Slug Cannon Flamer > --- INVENTORY -------- Ion Engine Ion Engine Light Treads Flight Unit Flight Unit Structural Scanner Targeting Computer Scrap Shield Hacking Suite Medium Laser Assault Rifle Datajack Datajack [Rating: 12] Favorites ----------- Power Light Ion Engine Engine Light Ion Engine Propulsion Light Treads Treads Light Treads Leg Aluminum Leg Utility Large Storage Unit Device Improved Terrain Scanner Storage Large Storage Unit Processor Signal Interpreter Weapon Assault Rifle Energy Gun Medium Laser Ballistic Gun Assault Rifle Ballistic Cannon Slug Cannon Launcher Grenade Launcher Special Weapon Flamer Special Melee Weapon Datajack Build | -11 -10 -10 ------- Run | Yrd Mat Sub Slots Evolved . | . . . Power . | . . . Propulsion . | . . . Utility . | . . . Weapon . | . . . Parts Attached 25 | 6 12 7 Power 6 | 1 3 2 Engine 6 | 1 3 2 Core . | . . . Reactor . | . . . Propulsion 4 | 2 2 . Treads 2 | 2 . . Leg 2 | . 2 . Wheel . | . . . Hover . | . . . Flight . | . . . Utility 4 | 1 2 1 Device 1 | . 1 . Storage 2 | 1 1 . Processor 1 | . . 1 Hackware . | . . . Protection . | . . . Artifact . | . . . Weapon 11 | 2 5 4 Energy Gun 2 | . 1 1 Energy Cannon . | . . . Ballistic Gun 4 | 2 2 . Ballistic Cannon 2 | . . 2 Launcher 1 | . 1 . Special Weapon 1 | . . 1 Impact Weapon . | . . . Slashing Weapon . | . . . Piercing Weapon . | . . . Special Melee Weapon 1 | . 1 . Unidentified Prototypes . | . . . Parts Lost 6 | . 3 3 Power 2 | . 1 1 Propulsion 1 | . 1 . Utility . | . . . Weapon 3 | . 1 2 Highest Loss Streak 2 | . 2 2 To Critical Strikes . | . . . Average Slot Usage (%) 92 | . 93 87 Engine 12 | . 13 9 Treads 18 | . 24 . Leg 7 | . . 28 Device 9 | . 12 . Storage 14 | . 14 14 Processor 2 | . . 11 Energy Gun 1 | . . 1 Ballistic Gun 15 | . 19 3 Ballistic Cannon 2 | . . 10 Launcher 4 | . 4 2 Special Weapon 1 | . . 5 Special Melee Weapon 1 | . 1 . Naked Turns . | . . . Heaviest Build 34 | 12 30 34 Greatest Support 40 | 40 40 20 Greatest Overweight (x) 9 | . 9 1 Average Overweight (x) . | . . 1 Largest Inventory Capacity 15 | 8 15 15 Average Capacity 14 | 6 14 15 Most Carried 15 | . 15 15 Average Carried 10 | . 9 14 Final Capacity 15 | 8 15 15 Final Carried 15 | . 15 12 Class Distribution -------------------- 98% | Mutant Dominant Class ---------------- Mutant | -10/Materials Mutant | -10/Subcaves Resources | -11 -10 -10 ----------- Run | Yrd Mat Sub Matter Collected 852 | 230 404 218 Remotely . | . . . Salvage Created 542 | . 453 89 Parts 57 | . 49 8 Haulers Intercepted . | . . . Recyclers Shooed 1 | . 1 . Parts Field Recycled . | . . . Retrieved Matter . | . . . Parts Self-Destructed 12 | . . 12 Prevented . | . . . Kills | -11 -10 -10 ------- Run | Yrd Mat Sub Combat Hostiles Destroyed 18 | . 14 4 Guns 12 | . 12 . Cannons 4 | . . 4 AOE 2 | . 2 . Classes Destroyed 7 | . 6 1 Builder 3 | . 3 . Tunneler 1 | . 1 . Operator 1 | . 1 . Watcher 3 | . 3 . Swarmer 7 | . 6 1 Grunt 8 | . 8 . Subdweller 3 | . . 3 Best Kill Streak 4 | . 4 1 Combat Bots Only 3 | . 3 1 Max Kills in Single Turn 1 | . 1 1 Gunslinging . | . . . Exploded 1 | . 1 . Melee . | . . . Uniques/NPCs Destroyed . | . . . Combat | -11 -10 -10 -------- Run | Yrd Mat Sub Hostile Shots Fired 157 | . 91 66 Missed 59 | . 32 27 Damage Taken 1113 | . 662 451 Core 265 | . 142 123 Absorbed by Shields . | . . . Core Remaining (%) 100 | 100 . . Volleys Fired 91 | . 66 25 Largest 2 | . 2 2 Hottest 100 | . 40 100 Shots Fired 136 | . 105 31 Gun 104 | . 98 6 Cannon 22 | . . 22 Launcher 7 | . 7 . Special 3 | . . 3 Kinetic 120 | . 98 22 Thermal 9 | . . 9 Explosive 7 | . 7 . Electromagnetic . | . . . Robot Hit Streak 5 | . 5 3 Robot Miss Streak 5 | . 3 5 Penetration Max . | . . . Secondary Targets 1 | . 1 . Max Gunslinging Chain 1 | . 1 . Shots Hit Robots 77 | . 66 11 Core Hits 35 | . 30 5 Critical Kills . | . . . Critical Parts Destroyed . | . . . Critical Strikes 1 | . . 1 Burn 1 | . . 1 Melee Attacks 4 | . 4 . Impact . | . . . Slashing . | . . . Piercing . | . . . Sneak Attacks 4 | . 4 . Combat Hostiles . | . . . Follow-up Attacks . | . . . Damage Inflicted 1244 | . 964 280 Guns 731 | . 705 26 Cannons 231 | . . 231 Explosions 259 | . 259 . Melee . | . . . Ramming . | . . . Kinetic 936 | . 705 231 Thermal 49 | . . 49 Explosive 259 | . 259 . Electromagnetic . | . . . Impact . | . . . Slashing . | . . . Piercing . | . . . Highest Corruption 3 | . 3 3 Average Corruption 2 | . 2 3 Corruption Purged . | . . . Corruption Blocked . | . . . Effects 35 | . 24 11 Message Errors 5 | . 4 1 Matter Fused 9 | . 7 2 Heat Flow Errors 4 | . 2 2 Energy Discharges 4 | . 2 2 Parts Rejected 1 | . . 1 Parts Fused 1 | . 1 . Data Loss (minor) 2 | . . 2 Data Loss (major) 3 | . 2 1 Misfires 4 | . 4 . Alerts 1 | . 1 . Weapon Failures 1 | . 1 . Overload Shots . | . . . Overflow Damage 20 | . 20 . Projectiles . | . . . Explosions 20 | . 20 . Melee . | . . . Knockbacks 3 | . . 3 Impact . | . . . Kinetic 3 | . . 3 Secondary . | . . . Self-Inflicted Damage 68 | . 68 . Shots 2 | . 2 . Rammed 1 | . 1 . Targets Rammed 1 | . 1 . Kicked . | . . . Crushed . | . . . Highest Temperature 197 | . 135 197 Average Temperature 69 | . 69 69 Received Heat Transfer 405 | . 219 186 Siege Activations . | . . . Robots Corrupted . | . . . Combat Hostiles . | . . . Parts Fried . | . . . Impact Corruptions . | . . . Robots Melted . | . . . Combat Hostiles . | . . . Parts Melted . | . . . Heat Transferred 394 | . . 394 Parts Sabotaged . | . . . Parts Stolen . | . . . Parts Stripped . | . . . Power Chain Reactions . | . . . Alert | -11 -10 -10 ------- Run | Yrd Mat Sub Peak Influence 214 | . 214 . Initial . | . . . Average 82 | . 84 . Maximum Alert Level 1 | . 1 . Low Security (%) 96 | 100 96 . Level 1 3 | . 3 . Level 2 . | . . . Level 3 . | . . . Level 4 . | . . . Level 5 . | . . . High Security . | . . . Max Security . | . . . Squads Dispatched 3 | . 3 . Investigation 1 | . 1 . Extermination . | . . . Reinforcement 2 | . 2 . Assault . | . . . Garrison . | . . . Intercept . | . . . Searches Triggered . | . . . Construction Impeded . | . . . Haulers Reinforced . | . . . Active Scanning Responses . | . . . Cargo Convoy Interrupts . | . . . Stealth | -11 -10 -10 --------- Run | Yrd Mat Sub Distress Signals . | . . . Communications Jammed . | . . . Distress Signals . | . . . Times Spotted 89 | . 25 64 Peak Tracking Total 5 | . 5 3 Tactical Retreats 6 | . 2 4 Traps | -11 -10 -10 ------- Run | Yrd Mat Sub Traps Triggered 7 | . 6 1 Indirectly 3 | . 3 . Trap Hack Attempts . | . . . Triggered . | . . . Disarmed . | . . . Reprogrammed . | . . . Reused . | . . . Traps Extracted . | . . . Installed . | . . . Triggered . | . . . Machines | -11 -10 -10 ---------- Run | Yrd Mat Sub Machines Disabled 4 | . 3 1 Max in Single Turn 1 | . 1 1 Machines Repaired . | . . . Machines Dismantled . | . . . Machines Sabotaged . | . . . Overloaded Fab Kills . | . . . Hacking | -11 -10 -10 --------- Run | Yrd Mat Sub Machines Accessed 8 | . 7 1 Terminals 5 | . 5 . Fabricators . | . . . Repair Stations . | . . . Recycling Units 2 | . 2 . Scanalyzers . | . . . Garrison Access . | . . . Total Hacks 22 | . 21 1 Successful 10 | . 9 1 Failed 12 | . 12 . Catastrophic . | . . . Database Lockouts . | . . . Manual 14 | . 13 1 Terminals 15 | . 15 . Fabricators . | . . . Repair Stations . | . . . Recycling Units 6 | . 6 . Scanalyzers . | . . . Garrison Access . | . . . Terminal Hacks 3 | . 2 1 Record 1 | . . 1 Unreport Threat 2 | . 2 . Fabricator Hacks . | . . . Repair Station Hacks . | . . . Recycling Unit Hacks 4 | . 4 . Report Inventory 2 | . 2 . Retrieve Matter 1 | . 1 . Retrieve Components 1 | . 1 . Scanalyzer . | . . . Garrison Access Hacks . | . . . Unauthorized Hacks 3 | . 3 . Terminals 3 | . 3 . Botnet 3 | . 3 . Fabricators . | . . . Repair Stations . | . . . Recycling Units . | . . . Scanalyzers . | . . . Garrison Access . | . . . Data Cores Recovered . | . . . Used . | . . . Hacking Detections 5 | . 5 . Full Trace Events 1 | . 1 . Feedback Events . | . . . Feedback Blocked . | . . . Robot Schematics Acquired . | . . . Robots Built . | . . . Authchips . | . . . Time . | . . . Total Robot Build Rating . | . . . Part Schematics Acquired . | . . . Parts Built . | . . . Authchips . | . . . Time . | . . . Total Part Build Rating . | . . . Parts Repaired . | . . . Time . | . . . Parts Recycled . | . . . Recycled Matter . | . . . Retrieved Matter 61 | . 61 . Retrieved Components 9 | . 9 . Parts Scanalyzed . | . . . Part Schematics Acquired . | . . . Parts Damaged . | . . . Bothacking | -11 -10 -10 ------------ Run | Yrd Mat Sub Used RIF Installer . | . . . Robots Hacked 1 | . 1 . Non-combat 1 | . 1 . Combat . | . . . Robot Hacks Applied 3 | . 3 . parse_system 1 | . 1 . no_distress 1 | . 1 . check_alert 1 | . 1 . Relay Couplers Released . | . . . Fabnet Peak Effective % . | . . . Robots Rewired . | . . . Allies Hacked . | . . . Hacks Repelled . | . . . Allies | -11 -10 -10 -------- Run | Yrd Mat Sub Total Allies . | . . . Largest Group . | . . . Highest-Rated Group . | . . . Highest-Rated Ally . | . . . Total Orders . | . . . Ally Attacks . | . . . Total Damage . | . . . Kills . | . . . Allies Corrupted . | . . . Allies Melted . | . . . Intel | -11 -10 -10 ------- Run | Yrd Mat Sub Robot Analysis Total . | . . . Derelict Logs Recovered 1 | . . 1 Drone Launches . | . . . Drone Recoveries . | . . . Exploration | -11 -10 -10 ------------- Run | Yrd Mat Sub Turns Passed 2749 | 65 2046 638 Spaces Moved 1264 | 38 943 283 Core 4 | 3 1 . Treads 951 | 35 916 . Legs 309 | . 26 283 Wheels . | . . . Hover . | . . . Flight . | . . . Fastest Speed 50 | 50 160 190 Average Speed 178 | 151 175 190 Slowest Speed 500 | 160 500 190 Overloaded Moves . | . . . Propulsion Burnouts . | . . . Robots Hopped . | . . . Cave-ins Triggered . | . . . Exploration Rate (%) 39 | 5 94 19 Regions Visited 2 Branch Regions 1 Pre-discovered Areas . | . . . Known Exits Taken . | . . . Unknown Exits Taken 2 | 1 1 . Scrap Searched . | . . . Spaces Dug . | . . . Terrain Destroyed 55 | . 48 7 Melee . | . . . Projectile 7 | . . 7 AOE 48 | . 48 . Terrain Rammed . | . . . Walls Destroyed . | . . . Machines Disabled . | . . . Actions | -11 -10 -10 --------- Run | Yrd Mat Sub Total 1621 | 43 1226 352 Wait 213 | . 185 28 Move 1262 | 37 942 283 Hop . | . . . Pick Up 16 | . 13 3 Fast Attach 11 | 6 4 1 Attach 8 | . 2 6 Detach 4 | . 2 2 Swap 6 | . 6 . Drop 5 | . 1 4 Fire 91 | . 66 25 Melee 4 | . 4 . Ram . | . . . Kick . | . . . Crush 1 | . 1 . Escape Stasis . | . . . Rewire . | . . . Trap . | . . . Miscellaneous . | . . . Route ------- -11/Scrapyard -10/Materials (discovered 5 exits: [*Mat x3] / [*Min] / *Sub) -10/Subcaves (discovered 1 exit: [*Rec]) History --------- Turn | Location | Event 9 | -11/Scrapyard | Discovered new exit (range 16) 66 | -11/Scrapyard | Entered Materials 236 | -10/Materials | Discovered new exit (range 14) 318 | -10/Materials | Discovered new exit (range 13) 333 | -10/Materials | Build established: Mutant 917 | -10/Materials | Discovered new exit (range 10) 1422 | -10/Materials | Discovered new exit (range 11) 1646 | -10/Materials | Core integrity fell below 50% 2103 | -10/Materials | Discovered new exit (range 4) 2112 | -10/Materials | Entered Subcaves 2328 | -10/Subcaves | Visited Clippyterm 2445 | -10/Subcaves | Discovered new exit (range 11) 2665 | -10/Subcaves | Core integrity fell below 20% 2750 | -10/Subcaves | Destroyed by WD-LTX(R) with Subdweller Laser Last Messages --------------- 02536_ Acquired 11 matter. 02551_ =CGTSL9XKJPA1K%Y&1FRIZMXMMZTDXYBWAY 02557_ Subatomizers dissect the Sub. Beam Cannon. 02598_ System corrupted: Component data lost. 02626_ System corrupted: Heat flow error (+240). 02647_ System corrupted: Heat flow error (+121). 02666_ IP-EUF(R) destroyed. 02667_ Subatomizers dissect the Sub. Monowheel. 02672_ Acquired derelict log, extracted data. Data stored: Recycling entrances (x1). 02677_ Acquired 6 matter. 02678_ Subatomizers dissect the Sub. Monowheel. 02679_ Acquired 18 matter. 02693_ System corrupted: Matter fused (-5). 02693_ Subatomizers dissect the Sub. Monowheel. 02731_ WD-LTX(R) knocked back. BY-ZVJ(R) emerges from concealment. 02737_ System corrupted: Ion Engine rejected. 02741_ AQ-YOS(R) destroyed. Map ----- +----------------------------------------------------+ | | | | | | | ?????????????????????????????????????????????????? | | ?????????????????????????????????????????????????? | | ?????????????????????????????????????????????????? | | ?????????????????????????????????????????????????? | | ?????????????????????????????????????????????????? | | ?????????????????????????????????????????????????? | | ??????????????????????#??????????????????????????? | | ??????????????????????#"?????????????????????????? | | ??????????????????????#" ????????????????????????? | | ??????????????????????#" #???????????????????????? | | ??????????????????????# " ??????????????????????? | | ???????????????????????# " ##########????????????? | | ????????????????????????# =<& "#????????????? | | ??????????????????????????## &%&""#????????????? | | ??????????????????????????#< #! "##????????????? | | ????????????????????????###< <#######???????????? | | ??????????????????????### < ### #???????????? | | ??????????????????????# ##??????????? | | ??????????????????????# #??????????? | | ?????????????????????## " #??????????? | | ???????????????????### ##"""#?????????? | | ???????????????????# ######?#""#?????????? | | ???????????????????# @ ##??????###?????????? | | ???????????????????###### ##?????????????????? | | ????????????? #????????### ;#????????????????? | | ?????????? ??????????## #????????????????? | | ?????????? #??????????## #????????????????? | | ?????????? #??????????##RR;#???????????????? | | ???????????# #?????????##%%##???????????????? | | ??????????## ???####### [#????????????????? | | ?????????## ??## #????????????????? | | ?????????# ??# #????????????????? | | ?????????# ??# #????????????????? | | ??????????# ### #???????????? | | ???????????# ### #???????????? | | ??????????## #?# ###???????????? | | ?????????## ## ####?????????????? | | ?????????# #????????????????? | | ?????????# ## #????????????????? | | ?????????# #### #????????????????? | | ?????????# #???### #????????????????? | | ?????????## ## #?????## #???????????????? | | ??????????## ??# #??????? ??????????????? | | ???????????# ???# ##??###?? ??????????????? | | ??????????# ???## ##?### #??# ??????????????? | | ??????????# ???## #??# #???## #??????????????? | | ??????????#????#" *%#??# ########??????????????? | +----------------------------------------------------+ Best States ------------- Heat Dissipation 25 Energy Generation 10 Energy Capacity 250 Matter Stores 300 Matter Capacity 300 Sight Range 16 Terrain Scan Range 16 Terrain Scan Density 10 Evasion (%) 40 Recoil Reduction 2 Item Schematics ----------------- None Robot Schematics ------------------ None Fabricated ------------ Nothing Alien Tech Used ----------------- None Achievements -------------- Quantum Hacking root@ Challenges ------------ None Game ------ Seed ChromaticReactionWeb Manual? 0 Play Time 00:24:16 Cumulative 4.4 hours Start 2024.04.08 @ 13:40:33 End 2024.04.08 @ 14:08:47 Sessions 1 Manual Loads 0 Difficulty Rogue Special Mode None Game No. 13 Rogue 11 Adventurer 0 Explorer 2 Win Type - Total 0 Types 0/0/0/0/0/0/0/0/0 Lore% 3 Gallery% 7 Achievement% 12 Wizard Run 0 Options --------- Layout 1 ASCII 0 Keyboard 1 Movement Vi Keybinds 0 Fullscreen 1 Font 32/SmallcapsGlow Map View 50x35 Zoom Use 2% Tactical HUD 1 Map Filters NONE Filters NONE Steam 1 RUN: f632bb8f-d5e1-4e93-a1be-a74630c43713